fUSD/lending_fUSD_20260219
["ID","MTS","AMOUNT","RATE_DAILY","PERIOD"]
[406004948,1771521042243,-181.08010149,0.00043989,120]
[406004949,1771521042253,-250.0,0.00043989,120]
[406004950,1771521042263,-1000.0,0.00043989,120]
[406004951,1771521042274,-500.0,0.00043989,120]
[406004952,1771521042284,-1000.0,0.00043989,120]
[406004953,1771521042294,-187.78006525,0.00043989,120]
[406004954,1771521042304,-1000.0,0.00043989,120]
[406004955,1771521042314,-250.0,0.00043989,120]
[406004956,1771521042326,-500.0,0.00043989,120]
[406004957,1771521042337,-194.72792766,0.00043989,120]
[406004958,1771521042347,-1000.0,0.00043989,120]
[406004959,1771521042358,-1000.0,0.00043989,120]
[406004960,1771521042371,-250.0,0.00043989,120]
[406004961,1771521042382,-260.9603024,0.00043989,120]
[406004962,1771521042392,-1000.0,0.00043989,120]
[406004963,1771521042403,-250.0,0.00043989,120]
[406004964,1771521042414,-1000.0,0.00043989,120]
[406004965,1771521042427,-201.93286098,0.00043989,120]
[406004966,1771521042440,-1000.0,0.00043989,120]
[406004967,1771521042451,-1000.0,0.00043989,120]
[406004968,1771521042462,-1000.0,0.00043989,120]
[406004969,1771521042474,-1000.0,0.00043989,120]
[406004970,1771521042485,-250.0,0.00043989,120]
[406004971,1771521042498,-1000.0,0.00043989,120]
[406004972,1771521042510,-250.0,0.00043989,120]
[406004973,1771521042521,-1000.0,0.00043989,120]
[406004974,1771521042532,-1000.0,0.00043989,120]
[406004975,1771521042543,-250.0,0.00043989,120]
[406004976,1771521042553,-250.0,0.00043989,120]
[406004977,1771521042564,-1000.0,0.00043989,120]
[406004978,1771521042575,-151.0,0.00043989,120]
[406004979,1771521042585,-151.0,0.00043989,120]
[406004980,1771521042595,-250.0,0.00043989,120]
[406004981,1771521042606,-1000.0,0.00043989,120]
[406004982,1771521042616,-156.587,0.00043989,120]
[406004983,1771521042626,-156.587,0.00043989,120]
[406004984,1771521042636,-250.0,0.00043989,120]
[406004985,1771521042646,-1000.0,0.00043989,120]
[406004986,1771521042657,-162.380719,0.00043989,120]
[406004989,1771521042667,-500.0,0.00043989,120]
[406004991,1771521042677,-250.0,0.00043989,120]
[406004992,1771521042699,-314.91446059,0.00043989,120]
[406004993,1771521042710,-168.3888056,0.00043989,120]
[406004994,1771521042722,-518.5,0.00043989,120]
[406004995,1771521042734,-520.0,0.00043989,120]
[406004996,1771521042747,-254.63035939,0.00043989,120]
[406004997,1771521042758,-174.61919141,0.00043989,120]
[406004998,1771521042769,-537.6845,0.00043989,120]
[406004999,1771521042780,-539.24,0.00043989,120]
[406005000,1771521042792,-181.08010149,0.00043989,120]
[406005001,1771521042803,-559.19188,0.00043989,120]
[406005002,1771521042814,-557.5788265,0.00043989,120]
[406005003,1771521042824,-187.78006525,0.00043989,120]
[406005004,1771521042835,-578.20924308,0.00043989,120]
[406005005,1771521042846,-194.72792766,0.00043989,120]
[406005006,1771521042857,-579.88197956,0.00043989,120]
[406005007,1771521042867,-599.60298507,0.00043989,120]
[406005008,1771521042878,-201.93286098,0.00043989,120]
[406005009,1771521042889,-601.3376128,0.00043989,120]
[406005010,1771521042899,-350.0,0.00043989,120]
[406005011,1771521042910,-623.58710448,0.00043989,120]
[406005012,1771521042922,-621.78829552,0.00043989,120]
[406005013,1771521042934,-500.0,0.00043989,120]
[406005014,1771521042945,-151.0,0.00043989,120]
[406005015,1771521042956,-287.24263412,0.00043989,120]
[406005016,1771521042965,-646.65982734,0.00043989,120]
[406005017,1771521042976,-644.79446246,0.00043989,120]
[406005018,1771521042986,-518.5,0.00043989,120]
[406005019,1771521042996,-537.6845,0.00043989,120]
[406005020,1771521043006,-151.0,0.00043989,120]
[406005021,1771521043018,-533.21597797,0.00043989,120]
[406005022,1771521043029,-668.65185757,0.00043989,120]
[406005023,1771521043039,-557.5788265,0.00043989,120]
[406005024,1771521043050,-151.0,0.00043989,120]
[406005025,1771521043060,-693.3919763,0.00043989,120]
[406005026,1771521043070,-151.0,0.00043989,120]
[406005027,1771521043080,-719.04747942,0.00043989,120]
[406005028,1771521043090,-151.0,0.00043989,120]
[406005029,1771521043101,-670.58624095,0.00043989,120]
[406005030,1771521043112,-151.0,0.00043989,120]
[406005031,1771521043122,-745.65223616,0.00043989,120]
[406005032,1771521043133,-151.0,0.00043989,120]
[406005033,1771521043143,-151.0,0.00043989,120]
[406005034,1771521043153,-773.2413689,0.00043989,120]
[406005035,1771521043164,-151.0,0.00043989,120]
[406005036,1771521043174,-151.0,0.00043989,120]
[406005037,1771521043186,-151.0,0.00043989,120]
[406005038,1771521043196,-801.85129955,0.00043989,120]
[406005039,1771521043207,-156.587,0.00043989,120]
[406005040,1771521043217,-151.0,0.00043989,120]
[406005041,1771521043227,-831.51979763,0.00043989,120]
[406005042,1771521043238,-162.380719,0.00043989,120]
[406005048,1771521043499,-862.28603014,0.00043989,120]
[406005050,1771521043514,-151.0,0.00043989,120]
[406005052,1771521043523,-168.38880561,0.00043989,120]
[406005053,1771521043533,-894.19061326,0.00043989,120]
[406005055,1771521043543,-695.39793186,0.00043989,120]
[406005057,1771521043552,-927.27566595,0.00043989,120]
[406005059,1771521043561,-961.58486559,0.00043989,120]
[406005061,1771521043570,-151.0,0.00043989,120]
[406005063,1771521043579,-997.16350561,0.00043989,120]
[406005064,1771521043589,-151.0,0.00043989,120]
[406005065,1771521043599,-151.0,0.00043989,120]
[406005066,1771521043608,-151.0,0.00043989,120]
[406005067,1771521043617,-2345.0,0.00043989,120]
[406005068,1771521043626,-250.0,0.00043989,120]
[406005069,1771521043635,-151.0,0.00043989,120]
[406005070,1771521043644,-200.0,0.00043989,120]
[406005071,1771521043653,-2345.0,0.00043989,120]
[406005072,1771521043663,-250.0,0.00043989,120]
[406005073,1771521043672,-151.0,0.00043989,120]
[406005074,1771521043682,-291524.1682175,0.0004399,120]
[406005075,1771521043899,-200.0,0.00043989,120]
[406005076,1771521043909,-196.83604645,0.00043989,120]
[406005086,1771521045963,-150.0,0.00024658,2]
[406005087,1771521045973,-150.0,0.0002589,2]
[406005088,1771521045982,-1373.24767264,0.00043923,120]
[406005089,1771521045991,-53.16395355,0.00043989,120]
[406005090,1771521046000,-151.0,0.00043989,120]
[406005091,1771521046009,-2345.0,0.00043989,120]
[406005092,1771521046019,-151.0,0.00043989,120]
[406005093,1771521046031,-2345.0,0.00043989,120]
[406005094,1771521046041,-176.78837382,0.00043989,120]
[406005109,1771521740664,791.09059454,0.00015,30]
[406005336,1771522232079,-150.16,0.00010228,2]
[406005337,1771522232089,-234.0,0.00010228,2]
[406005338,1771522232099,-250.0,0.00010297,2]
[406005339,1771522232109,-150.16,0.00010366,2]
[406005340,1771522232118,-150.16,0.00010505,2]
[406005341,1771522232127,-150.16,0.00010644,2]
[406005342,1771522232137,-1.20254698,0.00010728,2]
[406005343,1771522232149,-1199.00569602,0.00010728,2]
[406005344,1771522232159,-150.16,0.00010783,2]
[406005345,1771522232168,-213.804517,0.00010846,2]
[406005346,1771522232177,-150.16,0.00010922,2]
[406005347,1771522232186,-1980.5,0.00011014,2]
[406005349,1771522232195,-150.16,0.0001106,2]
[406005350,1771522232204,-1200.0,0.00011162,2]
[406005352,1771522232214,-1500.0,0.00011163,2]
[406005354,1771522232224,-150.16,0.00011199,2]
[406005355,1771522232234,-300.0,0.00011232,2]
[406005356,1771522232243,-300.0,0.00011232,2]
[406005357,1771522232252,-2160.57,0.00011233,2]
[406005358,1771522232261,-150.0,0.00011249,2]
[406005359,1771522232271,-250.0,0.0001125,2]
[406005360,1771522232281,-195.0,0.0001125,2]
[406005361,1771522232291,-195.0,0.0001125,2]
[406005362,1771522232302,-195.0,0.0001125,2]
[406005363,1771522232313,-195.0,0.0001125,2]
[406005364,1771522232323,-195.0,0.0001125,2]
[406005365,1771522232332,-300.0,0.0001125,2]
[406005366,1771522232341,-300.0,0.0001125,2]
[406005367,1771522232350,-300.0,0.0001125,2]
[406005368,1771522232360,-300.0,0.0001125,2]
[406005369,1771522232369,-300.0,0.0001125,2]
[406005370,1771522232378,-2500.0,0.0001125,2]
[406005371,1771522232387,-2500.0,0.0001125,2]
[406005372,1771522232397,-2167.00476647,0.0001125,2]
[406005373,1771522232408,-332.99523353,0.0001125,2]
[406005374,1771522232417,-462.22702386,0.0001125,2]
[406005375,1771522232428,-2037.77297614,0.0001125,2]
[406005376,1771522232437,-2500.0,0.0001125,2]
[406005377,1771522232446,-150.16,0.00011338,2]
[406005378,1771522232455,-150.16,0.00011477,2]
[406005379,1771522232464,-150.16,0.00011616,2]
[406005380,1771522232473,-150.16,0.00011755,2]
[406005381,1771522232482,-150.16,0.00011893,2]
[406005382,1771522232492,-150.16,0.00012032,2]
[406005383,1771522232501,-300.0,0.00012082,2]
[406005384,1771522232510,-1680.0,0.00012278,2]
[406005385,1771522232520,-255.0,0.00012307,2]
[406005386,1771522232529,-420.0,0.0001234,2]
[406005387,1771522232538,-432.0,0.00013066,2]
[406005388,1771522232546,-302.56,0.00013371,2]
[406005389,1771522232556,-500.0,0.00013465,2]
[406005390,1771522232565,-230.0,0.00013465,2]
[406005391,1771522232574,-2351.0,0.00013506,2]
[406005392,1771522232582,-587.0,0.00013557,2]
[406005393,1771522232591,-500.0,0.00013739,2]
[406005394,1771522232600,-606.516,0.00014081,2]
[406005395,1771522232609,-500.0,0.00014447,2]
[406005396,1771522232618,-304.62895111,0.00014447,2]
[406005397,1771522232629,-335.4,0.00014447,2]
[406005398,1771522232638,-3292.0,0.00014856,2]
[406005399,1771522232647,-823.0,0.00014894,2]
[406005400,1771522232658,-173.66088786,0.00014922,2]
[406005401,1771522232668,-45228.04757301,0.000162,5]
[406005402,1771522232678,-2929.0,0.00016342,2]
[406005403,1771522232687,-1032.0,0.00016363,2]
[406005404,1771522232696,-500.0,0.00017,2]
[406005405,1771522232705,-500.0,0.00017,2]
[406005406,1771522232715,-500.0,0.00017,2]
[406005407,1771522232724,-500.0,0.00017,2]
[406005408,1771522232734,-528.0,0.00017,2]
[406005409,1771522232743,-1000.0,0.00017548,2]
[406005410,1771522232752,-1000.0,0.00017548,2]
[406005411,1771522232761,-462.5444143,0.000179,3]
[406005412,1771522232770,-3010.44454129,0.000179,2]
[406005413,1771522232779,-1527.07903192,0.000179,2]
[406005414,1771522232788,-150.0,0.00017999,2]
[406005415,1771522232798,-133658.33419127,0.00018,2]
[406005416,1771522232809,-273.719,0.00018,2]
[406005417,1771522232819,-18078.28539432,0.00018,2]
[406005418,1771522232830,-1037.25,0.00018,2]
[406005419,1771522232841,-1676.64832908,0.00018,2]
[406005420,1771522232852,-1650.7294776,0.00018,2]
[406005421,1771522232864,-115721.92841846,0.00018,2]
[406005422,1771522232875,-834.3403945,0.00018,2]
[406005427,1771522238167,-1755.97574463,0.000179,2]
[406005428,1771522238176,-86824.46313327,0.00018,2]
[406005429,1771522238409,-1159.41324796,0.00018,2]
[406005496,1771522240267,-2900.51944108,0.00018,2]
[406005497,1771522240278,-68765.0,0.00018,2]
[406005498,1771522240324,-2105.02165435,0.00018,2]
[406005499,1771522240537,-337.374,0.00018,2]
[406005500,1771522240549,-9954.62348864,0.00018,2]
[406005501,1771522240592,-7294.02521592,0.00018,2]
[406005502,1771522240647,-2357.27069278,0.00018,2]
[406005725,1771522244690,-1858.58,0.00018,2]
[406005726,1771522244702,-1397.27540394,0.00018,2]
[406005727,1771522244746,-42839.33300191,0.00018,2]
[406005735,1771522245975,-484.0426968,0.00018,2]
[406005736,1771522246030,-595.01767175,0.00018,2]
[406005737,1771522246046,-935.16873761,0.00018,2]
[406005738,1771522246058,-748.2799996,0.00018,2]
[406005739,1771522246088,-355.1645428,0.00018,2]
[406005740,1771522246199,-1382.0,0.00018,2]
[406005741,1771522246254,-5441.23920961,0.00018,2]
[406005749,1771522335949,343.83367782,0.00015,30]
[406005751,1771522804822,233.0,0.00010127,2]
[406005752,1771523199261,267.0,0.00010127,2]
[406005753,1771523199291,222.00682944,0.00010127,2]
[406005815,1771523432180,-556.79151477,0.00010127,2]
[406005816,1771523432233,-633.09337915,0.00010127,2]
[406005817,1771523432247,-3408.63113142,0.00010127,2]
[406005818,1771523432257,-233.0,0.00010127,2]
[406005819,1771523432266,-250.0,0.00010127,2]
[406005820,1771523432276,-493.1988,0.00010127,2]
[406005821,1771523432287,-485.213,0.00010598,2]
[406005822,1771523432298,-258.29286012,0.00010614,2]
[406005823,1771523432308,-151.0,0.0001071,2]
[406005824,1771523432318,-1200.0,0.00010711,2]
[406005825,1771523432328,-150.0,0.00010712,2]
[406005826,1771523432338,-300.0,0.00010712,2]
[406005827,1771523432348,-300.0,0.00010712,2]
[406005828,1771523432358,-1000.0,0.00010712,2]
[406005829,1771523432367,-7825.20363751,0.00010713,2]
[406005830,1771523432379,-678.45,0.00010713,2]
[406005831,1771523432391,-1666.61360334,0.00010713,2]
[406005832,1771523432402,-981.47839901,0.00010713,2]
[406005833,1771523432412,-377.31590528,0.00010713,2]
[406005834,1771523432423,-108882.34419451,0.00010713,2]
[406005835,1771523432436,-2170.0,0.00010713,2]
[406005836,1771523432447,-2443.34554473,0.00010713,2]
[406005838,1771523432458,-4693.14033729,0.00010713,2]
[406005845,1771523438288,-500.47484729,8.604e-05,2]
[406005846,1771523438298,-9543.09553166,0.00010713,2]
[406005847,1771523438341,-1386.32538517,0.00010713,2]
[406005848,1771523438395,-1606.43883667,0.00010713,2]
[406005849,1771523438406,-519.57820263,0.00010713,2]
[406005850,1771523438416,-540.99733809,0.00010713,2]
[406005851,1771523438449,-20310.0,0.00010713,2]
[406005852,1771523438460,-713.71647197,0.00010713,2]
[406005853,1771523438471,-3176.1091525,0.00010713,2]
[406005854,1771523438482,-334.615,0.00010713,2]
[406005855,1771523438503,-3999.99999999,0.00010713,2]
[406005856,1771523438515,-123030.24126695,0.00010713,2]
[406006014,1771523440390,-333.695,0.00010713,2]
[406006015,1771523440401,-1960.0,0.00010713,2]
[406006016,1771523440426,-12261.14410848,0.00010713,2]
[406006017,1771523440438,-1965.0,0.00010713,2]
[406006018,1771523440448,-492.65507974,0.00010713,2]
[406006019,1771523440582,-3565.18647994,0.00010713,2]
[406006020,1771523440593,-268642.32681834,0.00010713,2]
[406006021,1771523440605,-542.688,0.00010713,2]
[406006022,1771523440616,-380.30947352,0.00010713,2]
[406006023,1771523440627,-883.15138334,0.00010713,2]
[406006024,1771523440670,-128536.25968025,0.00010713,2]
[406006037,1771523443963,-6343.34789676,0.00010713,2]
[406006038,1771523444020,-1016.49353724,0.00010713,2]
[406006039,1771523444034,-68578.93823183,0.00010713,2]
[406006040,1771523444071,-2010.39881757,0.00010713,2]
[406006041,1771523444083,-1853.1989828,0.00010713,2]
[406006042,1771523444094,-290.0,0.00010713,2]
[406006043,1771523444105,-856.08525685,0.00010713,2]
[406006044,1771523444117,-261.999998,0.00010713,2]
[406006045,1771523444130,-32589.10714352,0.00010713,2]
[406006046,1771523444145,-1743.29105489,0.00010713,2]
[406006055,1771523446186,-5632.25459061,0.00010713,2]
[406006056,1771523446198,-6111.11395499,0.00010713,2]
[406006057,1771523446209,-883.4800005,0.00010713,2]
[406006058,1771523446241,-19610.0,0.00010713,2]
[406006059,1771523446353,-4074.12,0.00010713,2]
[406006060,1771523446405,-431115.18178518,0.00010713,2]
[406006061,1771523446458,-423.94267088,0.00010713,2]
[406006062,1771523446470,-51013.83784704,0.00010713,2]
[406006063,1771523446515,-4133.7999997,0.00010713,2]
[406006069,1771523968580,-1200.0,8.603e-05,2]
[406006070,1771523968603,-300.0,8.603e-05,2]
[406006071,1771523968624,-250.0,8.603e-05,2]
[406006072,1771523972340,197.77996,8.591e-05,2]
[406006073,1771524001411,-500.0,8.604e-05,2]
[406006074,1771524001437,-500.0,8.604e-05,2]
[406006075,1771524001460,-500.0,8.604e-05,2]
[406006076,1771524001483,-504.67413726,8.604e-05,2]
[406006077,1771524001508,-500.0,8.604e-05,2]
[406006078,1771524001530,-312.54590274,8.604e-05,2]
[406006184,1771524631330,-187.45409726,8.604e-05,2]
[406006185,1771524631340,-507.9623124,8.604e-05,2]
[406006186,1771524631351,-894.37,9.557e-05,2]
[406006187,1771524631361,-300.0,9.796e-05,2]
[406006188,1771524631370,-300.0,9.796e-05,2]
[406006189,1771524631382,-118.95810751,9.796e-05,2]
[406006190,1771524631394,-401.79,9.796e-05,2]
[406006191,1771524631405,-651.48729921,9.796e-05,2]
[406006192,1771524631417,-27.76459328,9.796e-05,2]
[406006193,1771524631428,-150.0,9.797e-05,2]
[406006194,1771524631437,-154.229748,9.797e-05,2]
[406006195,1771524631447,-158.459496,9.797e-05,2]
[406006196,1771524631456,-85.46576271,9.797e-05,2]
[406006197,1771524631468,-77.22348229,9.797e-05,2]
[406006198,1771524631479,-166.918993,9.797e-05,2]
[406006199,1771524631488,-171.148742,9.797e-05,2]
[406006201,1771524631497,-175.37849,9.797e-05,2]
[406006203,1771524631506,-179.608239,9.797e-05,2]
[406006205,1771524631516,-183.837987,9.797e-05,2]
[406006207,1771524631525,-188.067735,9.797e-05,2]
[406006208,1771524631534,-1000.0,9.924e-05,2]
[406006209,1771524631545,-201.65985464,0.00010112,2]
[406006212,1771524631554,-792.98945585,0.00010112,2]
[406006213,1771524631567,-1500.0,0.00010112,2]
[406006214,1771524631581,-887.77170059,0.00010112,2]
[406006215,1771524631592,-305.11240035,0.00010112,2]
[406006366,1771524639536,-271.55175316,0.00010112,2]
[406006367,1771524639545,-151.0,0.00010205,2]
[406006368,1771524639555,-500.0,0.00010207,2]
[406006369,1771524639564,-500.0,0.00010207,2]
[406006370,1771524639573,-500.0,0.00010207,2]
[406006371,1771524639584,-500.0,0.00010207,2]
[406006372,1771524639595,-500.0,0.00010207,2]
[406006373,1771524639604,-500.0,0.00010207,2]
[406006374,1771524639614,-500.0,0.00010207,2]
[406006375,1771524639624,-500.0,0.00010207,2]
[406006376,1771524639634,-500.0,0.00010207,2]
[406006377,1771524639644,-500.0,0.00010207,2]
[406006378,1771524639653,-513.91341263,0.00010207,2]
[406006379,1771524639663,-500.0,0.00010207,2]
[406006380,1771524639673,-500.0,0.00010207,2]
[406006381,1771524639682,-500.0,0.00010207,2]
[406006382,1771524639692,-500.0,0.00010207,2]
[406006383,1771524639701,-500.0,0.00010207,2]
[406006384,1771524639710,-500.0,0.00010207,2]
[406006385,1771524639720,-500.0,0.00010207,2]
[406006386,1771524639728,-500.0,0.00010207,2]
[406006387,1771524639738,-500.0,0.00010207,2]
[406006388,1771524639747,-500.0,0.00010207,2]
[406006389,1771524639756,-500.0,0.00010207,2]
[406006390,1771524639765,-500.0,0.00010207,2]
[406006391,1771524639775,-500.0,0.00010207,2]
[406006392,1771524639784,-500.0,0.00010207,2]
[406006393,1771524639794,-500.0,0.00010207,2]
[406006394,1771524639803,-500.0,0.00010207,2]
[406006395,1771524639812,-500.0,0.00010207,2]
[406006396,1771524639823,-500.0,0.00010207,2]
[406006397,1771524639832,-500.0,0.00010207,2]
[406006398,1771524639848,-500.0,0.00010207,2]
[406006399,1771524639857,-500.0,0.00010207,2]
[406006400,1771524639868,-500.0,0.00010207,2]
[406006401,1771524639877,-500.0,0.00010207,2]
[406006402,1771524639887,-500.0,0.00010207,2]
[406006403,1771524639896,-500.0,0.00010207,2]
[406006404,1771524639905,-500.0,0.00010207,2]
[406006405,1771524639914,-500.0,0.00010207,2]
[406006406,1771524639924,-500.0,0.00010207,2]
[406006407,1771524639933,-500.0,0.00010207,2]
[406006408,1771524639942,-500.0,0.00010207,2]
[406006409,1771524639951,-500.0,0.00010207,2]
[406006411,1771524639960,-500.0,0.00010207,2]
[406006412,1771524639969,-500.0,0.00010207,2]
[406006413,1771524639978,-500.0,0.00010207,2]
[406006414,1771524639988,-500.0,0.00010207,2]
[406006415,1771524639997,-500.0,0.00010207,2]
[406006416,1771524640006,-500.0,0.00010207,2]
[406006418,1771524640016,-500.0,0.00010207,2]
[406006419,1771524640025,-500.0,0.00010207,2]
[406006420,1771524640038,-500.0,0.00010207,2]
[406006421,1771524640047,-300.0,0.00010207,2]
[406006422,1771524640056,-500.0,0.00010207,2]
[406006423,1771524640066,-150.0,0.00010207,2]
[406006424,1771524640075,-3433514.174,0.00010208,2]
[406006425,1771524640084,-172.19524008,0.00010213,2]
[406006426,1771524640094,-1500.0,0.00010274,2]
[406006427,1771524640103,-11806.2064,0.00010313,2]
[406006428,1771524640113,-1278.1228,0.00010313,2]
[406006429,1771524640123,-193.31288851,0.00010313,2]
[406006430,1771524640132,-151.0,0.00010407,2]
[406006431,1771524640142,-500.0,0.00010407,2]
[406006432,1771524640151,-151.0,0.00010407,2]
[406006433,1771524640159,-500.0,0.00010407,2]
[406006434,1771524640169,-151.0,0.00010407,2]
[406006435,1771524640178,-500.0,0.00010407,2]
[406006436,1771524640188,-151.0,0.00010407,2]
[406006437,1771524640197,-500.0,0.00010407,2]
[406006438,1771524640206,-151.0,0.00010407,2]
[406006439,1771524640215,-500.0,0.00010407,2]
[406006440,1771524640225,-151.0,0.00010407,2]
[406006441,1771524640238,-500.0,0.00010407,2]
[406006442,1771524640248,-151.0,0.00010407,2]
[406006443,1771524640257,-500.0,0.00010407,2]
[406006444,1771524640267,-500.0,0.00010407,2]
[406006445,1771524640280,-151.0,0.00010407,2]
[406006446,1771524640290,-305.67258133,0.00010407,2]
[406006447,1771524640299,-151.0,0.00010407,2]
[406006448,1771524640309,-151.0,0.00010407,2]
[406006449,1771524640318,-151.0,0.00010407,2]
[406006450,1771524640328,-500.0,0.00010407,2]
[406006451,1771524640337,-200.0,0.00010407,2]
[406006452,1771524640347,-200.0,0.00010407,2]
[406006453,1771524640357,-388.171,0.00010412,2]
[406006454,1771524640367,-240.0,0.00010546,2]
[406006455,1771524640376,-645.50083504,0.00010576,2]
[406006456,1771524640386,-2531.11971667,0.0001061,2]
[406006457,1771524640396,-226.57118396,0.00010702,2]
[406006458,1771524640405,-500.0,0.00010702,2]
[406006459,1771524640415,-79691.3789777,0.00010705,2]
[406006460,1771524640424,-1220.397077,0.00010705,2]
[406006461,1771524640437,-3190.8163096,0.00010705,2]
[406006462,1771524640447,-151.0,0.00010709,2]
[406006463,1771524640456,-3308.678429,0.00010712,2]
[406006464,1771524640465,-232320.9224537,0.00010712,2]
[406006465,1771524640475,-151.0,0.00010713,2]
[406006466,1771524640484,-469.0,0.00010716,2]
[406006467,1771524640728,-258.0,0.00010738,2]
[406006468,1771524640738,-226.0,0.00010759,2]
[406006469,1771524640748,-1680.0,0.00010776,2]
[406006470,1771524640759,-559.0,0.00010813,2]
[406006471,1771524640770,-1413.0,0.00010834,2]
[406006472,1771524640780,-170.83,0.00010899,2]
[406006473,1771524640789,-703.14331631,0.000109,2]
[406006474,1771524640832,-633.05083662,0.000109,2]
[406006475,1771524640843,-500.0,0.00010955,2]
[406006476,1771524640852,-200.0,0.00010955,2]
[406006477,1771524640861,-100.6717901,0.00010955,2]
[406006493,1771524643071,-99.3282099,0.00010955,2]
[406006494,1771524643081,-173.53675431,0.00010955,2]
[406006495,1771524643091,-430.68686512,0.00011099,2]
[406006496,1771524643100,-430.6868651,0.00011099,2]
[406006497,1771524643110,-592.14708551,0.00011099,2]
[406006498,1771524643119,-592.14708546,0.00011099,2]
[406006499,1771524643129,-1000.0,0.00011165,2]
[406006500,1771524643139,-255.0,0.00011217,2]
[406006501,1771524643148,-1800.47,0.00011233,2]
[406006502,1771524643159,-250.0,0.00011368,2]
[406006503,1771524643169,-500.0,0.00011503,2]
[406006504,1771524643179,-200.0,0.00011503,2]
[406006505,1771524643188,-200.0,0.00011503,2]
[406006506,1771524643198,-2112.923349,0.00011757,2]
[406006507,1771524643208,-200.0,0.00011842,2]
[406006508,1771524643217,-592.14708546,0.00011843,2]
[406006509,1771524643227,-430.6868651,0.00011843,2]
[406006510,1771524643237,-2351.0,0.00011854,2]
[406006511,1771524643247,-503.55960548,0.00012051,2]
[406006512,1771524643256,-201.77822118,0.00012051,2]
[406006513,1771524643266,-200.0,0.00012051,2]
[406006514,1771524643279,-17781.5501537,0.0001207,2]
[406006515,1771524643288,-51837.8046329,0.00012077,2]
[406006516,1771524643297,-738.2659477,0.0001211,2]
[406006517,1771524643307,-166.66,0.000122,2]
[406006518,1771524643318,-433.0,0.0001233,2]
[406006519,1771524643329,-3967.6001334,0.00012374,2]
[406006520,1771524643340,-11566.5776494,0.00012382,2]
[406006521,1771524643352,-1000.0,0.00012405,2]
[406006522,1771524643361,-158.8613897,0.00012414,2]
[406006523,1771524643371,-164.7293991,0.00012422,2]
[406006524,1771524643381,-166.66,0.00012457,2]
[406006525,1771524643391,-201.41552809,0.00012599,2]
[406006526,1771524643401,-592.14708546,0.00012708,2]
[406006527,1771524643410,-430.6868651,0.00012708,2]
[406006528,1771524643420,-166.66,0.00012713,2]
[406006529,1771524643429,-166.66,0.0001297,2]
[406006530,1771524643438,-805.0,0.00013039,2]
[406006531,1771524643448,-249.23,0.00013206,2]
[406006532,1771524643457,-166.66,0.00013227,2]
[406006533,1771524643467,-166.66,0.00013484,2]
[406006534,1771524643476,-28331.09,0.00013514,2]
[406006535,1771524643485,-255.0,0.00013545,2]
[406006536,1771524643494,-592.14708546,0.00013573,2]
[406006537,1771524643503,-430.6868651,0.00013573,2]
[406006538,1771524643513,-1000.0,0.00013646,2]
[406006539,1771524643522,-500.0,0.00013649,2]
[406006540,1771524643531,-500.0,0.00013698,2]
[406006541,1771524643540,-500.0,0.00013698,2]
[406006542,1771524643550,-500.0,0.00013698,2]
[406006543,1771524643559,-500.0,0.00013698,2]
[406006544,1771524643567,-500.0,0.00013698,2]
[406006545,1771524643577,-500.0,0.00013698,2]
[406006546,1771524643586,-500.0,0.00013698,2]
[406006547,1771524643596,-500.0,0.00013698,2]
[406006548,1771524643605,-500.0,0.00013698,2]
[406006549,1771524643615,-500.0,0.00013698,2]